fUST/lending_fUST_20250719
["ID","MTS","AMOUNT","RATE_DAILY","PERIOD"]
[373153000,1752886246661,-460.0,0.00018082,2]
[373153001,1752886246670,-460.0,0.00018082,2]
[373153002,1752886246680,-460.0,0.00018082,2]
[373153003,1752886246689,-1302.06,0.00018082,2]
[373153004,1752886246699,-460.0,0.00018082,2]
[373153005,1752886246708,-460.0,0.00018082,2]
[373153006,1752886246717,-460.0,0.00018082,2]
[373153007,1752886246727,-460.0,0.00018082,2]
[373153008,1752886246736,-460.0,0.00018082,2]
[373153009,1752886246745,-460.0,0.00018082,2]
[373153010,1752886246755,-460.0,0.00018082,2]
[373153011,1752886246764,-460.0,0.00018082,2]
[373153012,1752886246775,-152.69812429,0.00018082,2]
[373153013,1752886246784,-460.0,0.00018082,2]
[373153014,1752886246793,-330.68105287,0.00018082,2]
[373153015,1752886246803,-460.0,0.00018082,2]
[373153016,1752886246812,-460.0,0.00018082,2]
[373153017,1752886246822,-460.0,0.00018082,2]
[373153018,1752886246832,-1036.57,0.00018082,2]
[373153019,1752886246841,-460.0,0.00018082,2]
[373153020,1752886246850,-460.0,0.00018082,2]
[373153021,1752886246860,-516.59,0.00018082,2]
[373153022,1752886246958,-460.0,0.00018082,2]
[373153023,1752886246968,-1224.83,0.00018082,2]
[373153024,1752886246977,-1354.52,0.00018082,2]
[373153025,1752886246986,-460.0,0.00018082,2]
[373153026,1752886246995,-813.15,0.00018082,2]
[373153027,1752886247005,-521.40262785,0.00018082,2]
[373153028,1752886247014,-3359.4,0.00018082,2]
[373153029,1752886247023,-460.0,0.00018082,2]
[373153030,1752886247032,-460.0,0.00018082,2]
[373153031,1752886247042,-2239.47,0.00018082,2]
[373153032,1752886247051,-460.0,0.00018082,2]
[373153033,1752886247060,-460.0,0.00018082,2]
[373153034,1752886247069,-1200.61,0.00018082,2]
[373153035,1752886247078,-460.0,0.00018082,2]
[373153036,1752886247088,-460.0,0.00018082,2]
[373153037,1752886247097,-484.74,0.00018082,2]
[373153038,1752886247107,-2598.40782046,0.00018176,2]
[373153039,1752886247116,-269.0,0.00018231,2]
[373153040,1752886247125,-25000.0,0.0001833,2]
[373153041,1752886247135,-460.0,0.00018355,2]
[373153042,1752886247144,-460.0,0.00018355,2]
[373153043,1752886247163,-1157.36,0.00018356,2]
[373153044,1752886247174,-460.0,0.00018356,2]
[373153045,1752886247184,-460.0,0.00018356,2]
[373153046,1752886247194,-460.0,0.00018356,2]
[373153047,1752886247204,-454.16542626,0.00018356,2]
[373153048,1752886247214,-460.0,0.00018356,2]
[373153049,1752886247224,-917.31,0.00018356,2]
[373153050,1752886247234,-514.44,0.00018356,2]
[373153051,1752886247244,-460.0,0.00018356,2]
[373153052,1752886247254,-234.46101656,0.00018356,2]
[373153053,1752886247264,-460.0,0.00018356,2]
[373153054,1752886247274,-460.0,0.00018356,2]
[373153055,1752886247284,-460.0,0.00018356,2]
[373153056,1752886247294,-460.0,0.00018356,2]
[373153057,1752886247303,-1094.52,0.00018356,2]
[373153058,1752886247313,-1520.39,0.00018356,2]
[373153059,1752886247323,-460.0,0.00018356,2]
[373153060,1752886247334,-694.12,0.00018356,2]
[373153061,1752886247344,-460.0,0.00018356,2]
[373153062,1752886247354,-473.39,0.00018356,2]
[373153063,1752886247364,-2534.46,0.00018356,2]
[373153064,1752886247374,-460.0,0.00018356,2]
[373153065,1752886247384,-460.0,0.00018356,2]
[373153066,1752886247395,-460.0,0.00018356,2]
[373153067,1752886247406,-460.0,0.00018356,2]
[373153068,1752886247416,-460.0,0.00018356,2]
[373153069,1752886247426,-460.0,0.00018356,2]
[373153070,1752886247438,-460.0,0.00018356,2]
[373153071,1752886247449,-460.0,0.00018356,2]
[373153072,1752886247460,-1302.06,0.00018356,2]
[373153073,1752886247470,-460.0,0.00018356,2]
[373153074,1752886247481,-460.0,0.00018356,2]
[373153075,1752886247493,-460.0,0.00018356,2]
[373153076,1752886247505,-460.0,0.00018356,2]
[373153077,1752886247515,-325.77279094,0.00018356,2]
[373153078,1752886247525,-460.0,0.00018356,2]
[373153079,1752886247535,-460.0,0.00018356,2]
[373153080,1752886247546,-460.0,0.00018356,2]
[373153081,1752886247559,-460.0,0.00018356,2]
[373153082,1752886247571,-460.0,0.00018356,2]
[373153083,1752886247582,-460.0,0.00018356,2]
[373153084,1752886247592,-1036.57,0.00018356,2]
[373153085,1752886247602,-460.0,0.00018356,2]
[373153086,1752886247612,-460.0,0.00018356,2]
[373153087,1752886247622,-516.59,0.00018356,2]
[373153088,1752886247632,-460.0,0.00018356,2]
[373153089,1752886247642,-1224.83,0.00018356,2]
[373153090,1752886247652,-1354.52,0.00018356,2]
[373153091,1752886247661,-460.0,0.00018356,2]
[373153092,1752886247671,-813.15,0.00018356,2]
[373153093,1752886247681,-3359.4,0.00018356,2]
[373153094,1752886247690,-608.84089523,0.00018356,2]
[373153095,1752886247700,-460.0,0.00018356,2]
[373153096,1752886247710,-2239.47,0.00018356,2]
[373153097,1752886247721,-460.0,0.00018356,2]
[373153098,1752886247731,-460.0,0.00018356,2]
[373153099,1752886247741,-1200.61,0.00018356,2]
[373153100,1752886247752,-460.0,0.00018356,2]
[373153101,1752886247764,-460.0,0.00018356,2]
[373153102,1752886247779,-484.74,0.00018356,2]
[373153103,1752886247789,-500.0,0.00018384,2]
[373153104,1752886247799,-343.0,0.00018403,2]
[373153105,1752886247808,-1013.56099784,0.0001843,2]
[373153106,1752886247818,-2598.40782046,0.00018452,2]
[373153107,1752886247828,-500.0,0.00018546,2]
[373153108,1752886247839,-910.45934692,0.00018546,2]
[373153109,1752886247848,-1500.0,0.00018593,2]
[373153110,1752886247859,-1026.84,0.0001862,3]
[373153111,1752886247868,-513.42,0.0001862,3]
[373153112,1752886247878,-460.0,0.00018629,2]
[373153113,1752886247888,-460.0,0.00018629,2]
[373153114,1752886247899,-1157.36,0.0001863,2]
[373153115,1752886247909,-460.0,0.0001863,2]
[373153116,1752886247918,-460.0,0.0001863,2]
[373153117,1752886247928,-917.31,0.0001863,2]
[373153118,1752886247938,-460.0,0.0001863,2]
[373153119,1752886247950,-460.0,0.0001863,2]
[373153120,1752886247960,-460.0,0.0001863,2]
[373153121,1752886247971,-460.0,0.0001863,2]
[373153122,1752886247980,-1094.52,0.0001863,2]
[373153123,1752886247990,-1520.39,0.0001863,2]
[373153124,1752886248000,-460.0,0.0001863,2]
[373153125,1752886248010,-694.12,0.0001863,2]
[373153126,1752886248020,-460.0,0.0001863,2]
[373153127,1752886248030,-473.39,0.0001863,2]
[373153128,1752886248039,-2534.46,0.0001863,2]
[373153129,1752886248049,-460.0,0.0001863,2]
[373153130,1752886248059,-460.0,0.0001863,2]
[373153131,1752886248068,-460.0,0.0001863,2]
[373153132,1752886248078,-460.0,0.0001863,2]
[373153133,1752886248090,-460.0,0.0001863,2]
[373153134,1752886248100,-460.0,0.0001863,2]
[373153135,1752886248110,-460.0,0.0001863,2]
[373153136,1752886248120,-460.0,0.0001863,2]
[373153137,1752886248130,-1302.06,0.0001863,2]
[373153138,1752886248140,-460.0,0.0001863,2]
[373153139,1752886248150,-460.0,0.0001863,2]
[373153140,1752886248160,-400.53327967,0.0001863,2]
[373153141,1752886248170,-590.25393404,0.0001863,2]
[373153142,1752886248180,-460.0,0.0001863,2]
[373153143,1752886248189,-460.0,0.0001863,2]
[373153144,1752886248199,-248.78647143,0.0001863,2]
[373153145,1752886248209,-460.0,0.0001863,2]
[373153146,1752886248220,-460.0,0.0001863,2]
[373153147,1752886248231,-460.0,0.0001863,2]
[373153148,1752886248241,-1036.57,0.0001863,2]
[373153149,1752886248251,-460.0,0.0001863,2]
[373153150,1752886248261,-460.0,0.0001863,2]
[373153151,1752886248271,-516.59,0.0001863,2]
[373153152,1752886248281,-460.0,0.0001863,2]
[373153153,1752886248291,-1224.83,0.0001863,2]
[373153154,1752886248301,-1354.52,0.0001863,2]
[373153155,1752886248311,-460.0,0.0001863,2]
[373153156,1752886248321,-813.15,0.0001863,2]
[373153157,1752886248334,-3359.4,0.0001863,2]
[373153158,1752886248343,-460.0,0.0001863,2]
[373153159,1752886248353,-2239.47,0.0001863,2]
[373153160,1752886248363,-460.0,0.0001863,2]
[373153161,1752886248373,-460.0,0.0001863,2]
[373153162,1752886248383,-1200.61,0.0001863,2]
[373153163,1752886248395,-460.0,0.0001863,2]
[373153164,1752886248406,-460.0,0.0001863,2]
[373153165,1752886248415,-484.74,0.0001863,2]
[373153166,1752886248425,-2598.40782046,0.00018728,2]
[373153167,1752886248435,-1442.18807593,0.000189,2]
[373153168,1752886248444,-302.8183302,0.000189,2]
[373153169,1752886248454,-302.8183302,0.000189,2]
[373153170,1752886248463,-460.0,0.00018903,2]
[373153171,1752886248474,-1157.36,0.00018904,2]
[373153172,1752886248484,-460.0,0.00018904,2]
[373153173,1752886248495,-460.0,0.00018904,2]
[373153174,1752886248504,-917.31,0.00018904,2]
[373153175,1752886248514,-460.0,0.00018904,2]
[373153176,1752886248523,-460.0,0.00018904,2]
[373153177,1752886248533,-460.0,0.00018904,2]
[373153178,1752886248543,-460.0,0.00018904,2]
[373153179,1752886248552,-1520.39,0.00018904,2]
[373153180,1752886248562,-1094.52,0.00018904,2]
[373153181,1752886248572,-460.0,0.00018904,2]
[373153182,1752886248584,-694.12,0.00018904,2]
[373153183,1752886248593,-460.0,0.00018904,2]
[373153184,1752886248603,-473.39,0.00018904,2]
[373153185,1752886248613,-2534.46,0.00018904,2]
[373153186,1752886248623,-460.0,0.00018904,2]
[373153187,1752886248633,-460.0,0.00018904,2]
[373153188,1752886248643,-460.0,0.00018904,2]
[373153189,1752886248654,-460.0,0.00018904,2]
[373153190,1752886248663,-460.0,0.00018904,2]
[373153191,1752886248672,-460.0,0.00018904,2]
[373153192,1752886248682,-460.0,0.00018904,2]
[373153193,1752886248691,-460.0,0.00018904,2]
[373153194,1752886248702,-1302.06,0.00018904,2]
[373153195,1752886248711,-460.0,0.00018904,2]
[373153196,1752886248721,-460.0,0.00018904,2]
[373153197,1752886248731,-460.0,0.00018904,2]
[373153198,1752886248741,-460.0,0.00018904,2]
[373153199,1752886248751,-460.0,0.00018904,2]
[373153200,1752886248761,-460.0,0.00018904,2]
[373153201,1752886248770,-1036.57,0.00018904,2]
[373153202,1752886248780,-460.0,0.00018904,2]
[373153203,1752886248790,-460.0,0.00018904,2]
[373153204,1752886248800,-516.59,0.00018904,2]
[373153205,1752886248810,-460.0,0.00018904,2]
[373153206,1752886248819,-1224.83,0.00018904,2]
[373153207,1752886248829,-1354.52,0.00018904,2]
[373153208,1752886248840,-460.0,0.00018904,2]
[373153209,1752886248850,-813.15,0.00018904,2]
[373153210,1752886248860,-3359.4,0.00018904,2]
[373153211,1752886248870,-460.0,0.00018904,2]
[373153212,1752886248880,-2239.47,0.00018904,2]
[373153213,1752886248890,-460.0,0.00018904,2]
[373153214,1752886248901,-460.0,0.00018904,2]
[373153215,1752886248911,-1200.61,0.00018904,2]
[373153216,1752886248921,-460.0,0.00018904,2]
[373153217,1752886248931,-460.0,0.00018904,2]
[373153218,1752886248941,-484.74,0.00018904,2]
[373153219,1752886248951,-279.74611085,0.00018906,2]
[373153220,1752886248961,-357.483414,0.00018954,2]
[373153221,1752886248970,-2598.40782046,0.00019003,2]
[373153222,1752886248980,-160.0,0.00019056,2]
[373153223,1752886248990,-302.8183302,0.00019089,2]
[373153224,1752886249000,-302.84859387,0.00019089,2]
[373153225,1752886249010,-1170.97728946,0.00019141,2]
[373153226,1752886249020,-215.0738,0.00019151,2]
[373153227,1752886249030,-460.0,0.00019177,2]
[373153228,1752886249147,-1157.36,0.00019178,2]
[373153229,1752886249158,-460.0,0.00019178,2]
[373153230,1752886249168,-460.0,0.00019178,2]
[373153231,1752886249178,-917.31,0.00019178,2]
[373153232,1752886249188,-460.0,0.00019178,2]
[373153233,1752886249198,-460.0,0.00019178,2]
[373153234,1752886249208,-460.0,0.00019178,2]
[373153235,1752886249218,-460.0,0.00019178,2]
[373153236,1752886249228,-1520.39,0.00019178,2]
[373153237,1752886249238,-1094.52,0.00019178,2]
[373153238,1752886249248,-460.0,0.00019178,2]
[373153239,1752886249258,-694.12,0.00019178,2]
[373153240,1752886249268,-484.25,0.00019178,2]
[373153241,1752886249280,-473.39,0.00019178,2]
[373153242,1752886249290,-2534.46,0.00019178,2]
[373153243,1752886249300,-460.0,0.00019178,2]
[373153244,1752886249309,-460.0,0.00019178,2]
[373153245,1752886249319,-489.05811205,0.00019178,2]
[373153246,1752886249329,-460.0,0.00019178,2]
[373153247,1752886249339,-460.0,0.00019178,2]
[373153248,1752886249348,-460.0,0.00019178,2]
[373153249,1752886249358,-1302.06,0.00019178,2]
[373153250,1752886249369,-460.0,0.00019178,2]
[373153251,1752886249378,-460.0,0.00019178,2]
[373153252,1752886249389,-460.0,0.00019178,2]
[373153253,1752886249402,-263.7,0.00019178,2]
[373153254,1752886249411,-460.0,0.00019178,2]
[373153255,1752886249422,-1036.57,0.00019178,2]
[373153256,1752886249432,-460.0,0.00019178,2]
[373153257,1752886249443,-460.0,0.00019178,2]
[373153258,1752886249453,-516.59,0.00019178,2]
[373153259,1752886249462,-460.0,0.00019178,2]
[373153260,1752886249472,-1224.83,0.00019178,2]
[373153261,1752886249482,-1354.52,0.00019178,2]
[373153262,1752886249492,-460.0,0.00019178,2]
[373153263,1752886249501,-813.15,0.00019178,2]
[373153264,1752886249510,-3359.4,0.00019178,2]
[373153265,1752886249519,-460.0,0.00019178,2]
[373153266,1752886249529,-2239.47,0.00019178,2]
[373153267,1752886249538,-460.0,0.00019178,2]
[373153268,1752886249548,-512.56164201,0.00019178,2]
[373153269,1752886249558,-460.0,0.00019178,2]
[373153270,1752886249568,-1200.61,0.00019178,2]
[373153271,1752886249577,-460.0,0.00019178,2]
[373153272,1752886249588,-484.74,0.00019178,2]
[373153273,1752886249597,-170.819959,0.00019178,2]
[373153274,1752886249607,-5000.0,0.00019178,2]
[373153275,1752886249617,-700.0,0.00019186,2]
[373153276,1752886249628,-302.8183302,0.00019278,2]
[373153277,1752886249640,-2598.40782046,0.00019279,2]
[373153278,1752886249650,-460.0,0.00019451,2]
[373153279,1752886249659,-1157.36,0.00019452,2]
[373153280,1752886249671,-460.0,0.00019452,2]
[373153281,1752886249682,-460.0,0.00019452,2]
[373153282,1752886249693,-917.31,0.00019452,2]
[373153283,1752886249703,-460.0,0.00019452,2]
[373153284,1752886249712,-460.0,0.00019452,2]
[373153285,1752886249723,-460.0,0.00019452,2]
[373153286,1752886249734,-1520.39,0.00019452,2]
[373153287,1752886249745,-1094.52,0.00019452,2]
[373153288,1752886249762,-460.0,0.00019452,2]
[373153289,1752886249783,-694.12,0.00019452,2]
[373153290,1752886249793,-473.39,0.00019452,2]
[373153291,1752886249803,-2534.46,0.00019452,2]
[373153292,1752886249813,-460.0,0.00019452,2]
[373153293,1752886249824,-460.0,0.00019452,2]
[373153294,1752886249834,-460.0,0.00019452,2]
[373153295,1752886249843,-460.0,0.00019452,2]
[373153296,1752886249852,-548.44,0.00019452,2]
[373153297,1752886249863,-1302.06,0.00019452,2]
[373153298,1752886249874,-460.0,0.00019452,2]
[373153299,1752886249884,-460.0,0.00019452,2]
[373153300,1752886249896,-169.97215349,0.00019452,2]
[373153301,1752886249906,-460.0,0.00019452,2]
[373153302,1752886249917,-1036.57,0.00019452,2]
[373153303,1752886249927,-176.9930995,0.00019452,2]
[373153304,1752886249938,-516.59,0.00019452,2]
[373153305,1752886249948,-460.0,0.00019452,2]
[373153306,1752886249958,-1224.83,0.00019452,2]
[373153307,1752886249970,-1354.52,0.00019452,2]
[373153308,1752886249981,-460.0,0.00019452,2]
[373153309,1752886249991,-813.15,0.00019452,2]
[373153310,1752886250003,-3359.4,0.00019452,2]
[373153311,1752886250013,-460.0,0.00019452,2]
[373153312,1752886250023,-2239.47,0.00019452,2]
[373153313,1752886250033,-460.0,0.00019452,2]
[373153314,1752886250044,-460.0,0.00019452,2]
[373153315,1752886250054,-1200.61,0.00019452,2]
[373153316,1752886250064,-302.8183302,0.00019467,2]
[373153317,1752886250073,-2598.40782046,0.00019555,2]
[373153318,1752886250084,-647.0,0.00019592,2]
[373153319,1752886250094,-2156.0,0.00019592,2]
[373153320,1752886250103,-407.0,0.00019592,2]
[373153321,1752886250113,-968.0,0.00019592,2]
[373153322,1752886250122,-260.0,0.00019604,2]
[373153323,1752886250132,-1974.0,0.0001963,2]
[373153324,1752886250142,-587.0,0.00019631,2]
[373153325,1752886250152,-152.87793086,0.00019656,2]
[373153326,1752886250162,-460.0,0.00019725,2]
[373153327,1752886250172,-1157.36,0.00019726,2]
[373153328,1752886250182,-460.0,0.00019726,2]
[373153329,1752886250193,-460.0,0.00019726,2]
[373153330,1752886250203,-917.31,0.00019726,2]
[373153331,1752886250214,-460.0,0.00019726,2]
[373153332,1752886250223,-460.0,0.00019726,2]
[373153333,1752886250235,-460.0,0.00019726,2]
[373153334,1752886250245,-1520.39,0.00019726,2]
[373153335,1752886250254,-1094.52,0.00019726,2]
[373153336,1752886250263,-460.0,0.00019726,2]
[373153337,1752886250273,-694.12,0.00019726,2]
[373153338,1752886250282,-473.39,0.00019726,2]
[373153339,1752886250291,-2534.46,0.00019726,2]
[373153340,1752886250299,-460.0,0.00019726,2]
[373153341,1752886250309,-460.0,0.00019726,2]
[373153342,1752886250318,-460.0,0.00019726,2]
[373153343,1752886250327,-255.87507986,0.00019726,2]
[373153344,1752886250337,-1302.06,0.00019726,2]
[373153345,1752886250346,-460.0,0.00019726,2]
[373153346,1752886250355,-460.0,0.00019726,2]
[373153347,1752886250364,-436.5245382,0.00019726,2]
[373153348,1752886250373,-1036.57,0.00019726,2]
[373153349,1752886250382,-516.59,0.00019726,2]
[373153350,1752886250392,-460.0,0.00019726,2]
[373153351,1752886250403,-1224.83,0.00019726,2]
[373153352,1752886250412,-1354.52,0.00019726,2]
[373153353,1752886250421,-460.0,0.00019726,2]
[373153354,1752886250431,-813.15,0.00019726,2]
[373153355,1752886250440,-3359.4,0.00019726,2]
[373153356,1752886250449,-463.81204522,0.00019726,2]
[373153357,1752886250458,-2239.47,0.00019726,2]
[373153358,1752886250468,-453.37049823,0.00019726,2]
[373153359,1752886250478,-417.05352775,0.00019726,2]
[373153360,1752886250487,-1200.61,0.00019726,2]
[373153361,1752886250496,-356.1611332,0.00019782,2]
[373153362,1752886250505,-2598.40782046,0.00019831,2]
[373153363,1752886250515,-500.0,0.00019973,2]
[373153364,1752886250524,-170.16000748,0.00019973,2]
[373153365,1752886250533,-305.26285468,0.00019973,2]
[373153366,1752886250545,-150.39478184,0.00019973,2]
[373153367,1752886250553,-500.0,0.00019973,2]
[373153368,1752886250562,-500.0,0.00019973,2]
[373153369,1752886250571,-617.91842792,0.00019973,2]
[373153370,1752886250581,-500.0,0.00019973,2]
[373153371,1752886250590,-500.0,0.00019973,2]
[373153372,1752886250599,-500.0,0.00019973,2]
[373153373,1752886250608,-500.0,0.00019973,2]
[373153374,1752886250617,-500.0,0.00019973,2]
[373153375,1752886250626,-203.96689228,0.00019973,2]
[373153376,1752886250635,-551.46252491,0.00019998,2]
[373153377,1752886250644,-298.14335414,0.00019998,2]
[373153378,1752886250654,-551.46252491,0.00019998,2]
[373153379,1752886250663,-551.46252491,0.00019998,2]
[373153380,1752886250672,-551.46252491,0.00019998,2]
[373153381,1752886250681,-551.46252491,0.00019998,2]
[373153382,1752886250689,-551.46252491,0.00019998,2]
[373153383,1752886250699,-551.46252491,0.00019998,2]
[373153384,1752886250708,-551.46252491,0.00019998,2]
[373153385,1752886250719,-551.46252491,0.00019998,2]
[373153386,1752886250728,-551.46252491,0.00019998,2]
[373153387,1752886250737,-551.46252491,0.00019998,2]
[373153388,1752886250747,-551.46252491,0.00019998,2]
[373153389,1752886250756,-551.46252491,0.00019998,2]
[373153390,1752886250766,-551.46252491,0.00019998,2]
[373153391,1752886250776,-551.46252491,0.00019998,2]
[373153392,1752886250785,-551.46252491,0.00019998,2]
[373153393,1752886250795,-551.46252491,0.00019998,2]
[373153394,1752886250806,-551.46252491,0.00019998,2]
[373153395,1752886250815,-551.46252491,0.00019998,2]
[373153396,1752886250825,-551.46252491,0.00019998,2]
[373153397,1752886250836,-551.46252491,0.00019998,2]
[373153398,1752886250845,-551.46252491,0.00019998,2]
[373153399,1752886250855,-551.46252491,0.00019998,2]
[373153400,1752886250865,-551.46252491,0.00019998,2]
[373153401,1752886250874,-551.46252491,0.00019998,2]
[373153402,1752886250885,-551.46252491,0.00019998,2]
[373153403,1752886250894,-551.46252491,0.00019998,2]
[373153404,1752886250903,-551.46252491,0.00019998,2]
[373153405,1752886250912,-551.46252491,0.00019998,2]
[373153406,1752886250923,-551.46252491,0.00019998,2]
[373153407,1752886250933,-460.0,0.00019999,2]
[373153408,1752886250944,-186.05,0.0002,2]
[373153409,1752886250954,-1157.36,0.0002,2]
[373153410,1752886250964,-460.0,0.0002,2]
[373153411,1752886250973,-143267.4508409,0.0002,2]
[373153412,1752886250989,-460.0,0.0002,2]
[373153413,1752886251008,-917.31,0.0002,2]
[373153414,1752886251021,-460.0,0.0002,2]
[373153415,1752886251030,-460.0,0.0002,2]
[373153416,1752886251039,-1520.39,0.0002,2]
[373153417,1752886251130,-460.0,0.0002,2]
[373153418,1752886251140,-1094.52,0.0002,2]
[373153419,1752886251150,-694.12,0.0002,2]
[373153420,1752886251159,-473.39,0.0002,2]
[373153421,1752886251169,-2534.46,0.0002,2]
[373153422,1752886251178,-460.0,0.0002,2]
[373153423,1752886251188,-460.0,0.0002,2]
[373153424,1752886251197,-332.13,0.0002,2]
[373153425,1752886251207,-1302.06,0.0002,2]
[373153426,1752886251218,-460.0,0.0002,2]
[373153427,1752886251228,-460.0,0.0002,2]
[373153428,1752886251238,-1036.57,0.0002,2]
[373153429,1752886251248,-516.59,0.0002,2]
[373153430,1752886251259,-460.0,0.0002,2]
[373153431,1752886251269,-1224.83,0.0002,2]
[373153432,1752886251278,-1354.52,0.0002,2]
[373153433,1752886251289,-460.0,0.0002,2]
[373153434,1752886251299,-151.0,0.0002,2]
[373153435,1752886251308,-813.15,0.0002,2]
[373153436,1752886251322,-3359.4,0.0002,2]
[373153437,1752886251332,-1113.326688,0.0002,2]
[373153438,1752886251343,-2239.47,0.0002,2]
[373153439,1752886251353,-1113.326688,0.0002,2]
[373153440,1752886251363,-151.0,0.0002,2]
[373153441,1752886251372,-1200.61,0.0002,2]
[373153442,1752886251381,-151.0,0.0002,2]
[373153443,1752886251391,-2598.40782046,0.00020107,2]
[373153444,1752886251405,-360.0,0.00020151,2]
[373153445,1752886251415,-500.0,0.00020186,2]
[373153446,1752886251424,-500.0,0.00020186,2]
[373153447,1752886251435,-427.76809,0.00020187,2]
[373153448,1752886251446,-241.274204,0.00020272,2]
[373153449,1752886251456,-1157.36,0.00020273,2]
[373153450,1752886251466,-158.60664099,0.00020273,2]
[373153451,1752886251478,-460.0,0.00020273,2]
[373153452,1752886251490,-917.31,0.00020273,2]
[373153453,1752886251500,-595.72946023,0.00020273,2]
[373153454,1752886251510,-460.0,0.00020273,2]
[373153455,1752886251522,-1520.39,0.00020273,2]
[373153456,1752886251533,-460.0,0.00020273,2]
[373153457,1752886251543,-1094.52,0.00020273,2]
[373153458,1752886251555,-694.12,0.00020273,2]
[373153459,1752886251564,-473.39,0.00020273,2]
[373153460,1752886251577,-2534.46,0.00020273,2]
[373153461,1752886251598,-460.0,0.00020273,2]
[373153462,1752886251614,-460.0,0.00020273,2]
[373153463,1752886251624,-1302.06,0.00020273,2]
[373153464,1752886251634,-460.0,0.00020273,2]
[373153465,1752886251644,-460.0,0.00020273,2]
[373153466,1752886251655,-460.0,0.00020273,2]
[373153467,1752886251666,-1036.57,0.00020273,2]
[373153468,1752886251675,-516.59,0.00020273,2]
[373153469,1752886251685,-460.0,0.00020273,2]
[373153470,1752886251694,-1224.83,0.00020273,2]
[373153471,1752886251703,-1354.52,0.00020273,2]
[373153472,1752886251713,-460.0,0.00020273,2]
[373153473,1752886251722,-813.15,0.00020273,2]
[373153474,1752886251733,-3359.4,0.00020273,2]
[373153475,1752886251744,-2239.47,0.00020273,2]
[373153476,1752886251755,-1200.61,0.00020273,2]
[373153477,1752886251766,-700.0,0.00020282,2]
[373153478,1752886251777,-2598.40782046,0.00020383,3]
[373153479,1752886251786,-151.0,0.00020383,2]
[373153480,1752886251796,-151.0,0.00020383,2]
[373153481,1752886251805,-151.0,0.00020383,2]
[373153482,1752886251814,-151.0,0.00020383,2]
[373153483,1752886251824,-151.0,0.00020383,2]
[373153484,1752886251833,-151.0,0.00020383,2]
[373153485,1752886251844,-151.0,0.00020383,2]
[373153486,1752886251854,-151.0,0.00020383,2]
[373153487,1752886251863,-5823.98589143,0.0002042,2]
[373153488,1752886251873,-357.483414,0.00020429,2]
[373153489,1752886251883,-615.265,0.00020438,2]
[373153490,1752886251892,-250.0,0.000205,2]
[373153491,1752886251901,-151.0,0.000205,3]
[373153492,1752886251911,-223.0315306,0.0002052,2]
[373153493,1752886251920,-1000.0,0.00020521,2]
[373153494,1752886251929,-500.0,0.00020521,2]
[373153495,1752886251939,-500.0,0.00020521,2]
[373153496,1752886251948,-151.0,0.00020547,2]
[373153497,1752886251958,-151.0,0.00020547,2]
[373153498,1752886251967,-151.0,0.00020547,2]
[373153499,1752886251977,-1157.36,0.00020547,2]